bitfinex/quotes_SOLUSD_20260115
["timestamp","ask_amount","ask_price","bid_price","bid_amount"]
[1768484797723,1.51716163,144.93,144.91,3.99953032]
[1768484798829,1.51716163,144.93,144.9,5.47029947]
[1768484799248,1.51716163,144.93,144.9,12.37149994]
[1768484800620,1.51716163,144.93,144.91,3.99953032]
[1768484801324,1.61716163,144.94,144.91,5.47029947]
[1768484801523,0.1,144.94,144.92,3.99953032]
[1768484801747,0.1,144.94,144.92,5.47029947]
[1768484802821,0.1,144.94,144.91,5.47029947]
[1768484803332,1.61716163,144.94,144.91,5.47029947]
[1768484804242,1.51716163,144.93,144.9,5.47029947]
[1768484804926,1.51716163,144.93,144.9,12.37153804]
[1768484805244,1.51716163,144.93,144.91,3.99953032]
[1768484806151,1.61716163,144.94,144.91,3.99953032]
[1768484806525,1.61716163,144.94,144.92,3.99953032]
[1768484807540,1.61716163,144.94,144.91,8.37151908]
[1768484807848,0.1,144.94,144.91,12.3710494]
[1768484808036,0.1,144.94,144.92,1.47076915]
[1768484808239,0.1,144.94,144.92,5.47029947]
[1768484809060,0.1,144.94,144.92,1.47076915]
[1768484809238,0.1,144.94,144.92,3.99953032]
[1768484809624,0.1,144.94,144.91,5.47029947]
[1768484810028,0.1,144.94,144.91,1.47076915]
[1768484810224,1.51716163,144.93,144.9,1.47076915]
[1768484810430,8.51663263,144.94,144.9,8.37199048]
[1768484810638,8.51663263,144.94,144.9,12.3715208]
[1768484811241,8.51663263,144.94,144.9,5.47029947]
[1768484811437,1.46998457,144.93,144.9,5.47029947]
[1768484811639,1.46998457,144.93,144.89,5.45962491]
[1768484812142,6.89999437,144.93,144.89,5.45962491]
[1768484812344,1.46998457,144.92,144.89,5.45962491]
[1768484813153,8.36997894,144.93,144.89,12.36139503]
[1768484814057,6.89999437,144.93,144.89,12.36139503]
[1768484814256,1.46998457,144.92,144.89,1.46009459]
[1768484814434,1.46998457,144.91,144.89,3.99953032]
[1768484814636,1.46998457,144.91,144.87,5.45962491]
[1768484814844,1.46998457,144.91,144.87,12.36235937]
[1768484815640,1.46998457,144.91,144.87,8.36282905]
[1768484816036,1.46998457,144.9,144.87,8.36282905]
[1768484816444,1.40998457,144.9,144.87,8.36282905]
[1768484817339,1.40998457,144.9,144.86,8.36310379]
[1768484817752,1.40998457,144.9,144.86,12.36263411]
[1768484817946,3.99953032,144.89,144.84,1.46009459]
[1768484818146,3.99953032,144.89,144.84,5.45962491]
[1768484818338,3.99953032,144.87,144.83,1.46009459]
[1768484818565,1.46998457,144.86,144.83,1.46009459]
[1768484818860,1.40998453,144.86,144.83,1.46009459]
[1768484819167,1.34998453,144.86,144.83,1.46009459]
[1768484820042,1.34998453,144.86,144.83,6.9045771]
[1768484820743,3.99953032,144.86,144.82,6.90494549]
[1768484821052,6.90336831,144.86,144.81,12.36504265]
[1768484821257,1.46998457,144.85,144.81,12.36504265]
[1768484821550,1.46998457,144.86,144.82,12.36469095]
[1768484821857,1.46998457,144.86,144.83,6.90456392]
[1768484822057,1.46998457,144.86,144.83,8.36465851]
[1768484822836,1.46998457,144.86,144.83,12.36418883]
[1768484823859,1.46998457,144.89,144.85,5.45962491]
[1768484824054,1.46998457,144.89,144.85,12.36294871]
[1768484824846,1.46998457,144.89,144.85,8.36341839]
[1768484825049,1.46998457,144.89,144.85,12.36294871]
[1768484825250,1.46998457,144.89,144.85,8.36341839]
[1768484825560,1.46998457,144.89,144.85,12.36294871]
[1768484826059,29.83153081,144.92,144.89,1.46009459]
[1768484826060,1.46998457,144.92,144.89,1.46009459]
[1768484826262,0.1,144.94,144.91,5.45962491]
[1768484826860,1.56998457,144.94,144.91,1.46009459]
[1768484827055,1.56998457,144.94,144.91,3.99953032]
[1768484828162,1.56998457,144.94,144.91,10.89996624]
[1768484829665,0.1,144.94,144.92,3.99953032]
[1768484829860,0.1,144.94,144.93,3.99953032]
[1768484830056,1.56998457,144.95,144.93,3.99953032]
[1768484830768,1.56998457,144.95,144.91,8.36080488]
[1768484830938,1.56998457,144.95,144.92,6.90031164]
[1768484831136,1.56998457,144.95,144.92,10.89984196]
[1768484831863,1.56998457,144.95,144.92,6.90031164]
[1768484832248,1.56998457,144.95,144.92,10.89984196]
[1768484832768,1.56998457,144.95,144.92,6.90031164]
[1768484832952,1.56998457,144.95,144.92,10.89984196]
[1768484834146,0.1,144.95,144.93,3.99953032]
[1768484834463,0.1,144.95,144.93,5.45962491]
[1768484835354,0.1,144.95,144.93,3.99953032]
[1768484835754,0.1,144.95,144.93,10.89940998]
[1768484836460,0.1,144.95,144.93,12.35950457]
[1768484836658,1.46998457,144.96,144.94,3.99953032]
[1768484837260,1.46998457,144.97,144.95,3.99953032]
[1768484837452,1.89998457,144.98,144.95,10.89843175]
[1768484837765,1.89998457,144.98,144.96,3.99953032]
[1768484838165,1.89998457,144.98,144.95,8.35899602]
[1768484838382,1.89998457,144.98,144.96,3.99953032]
[1768484838678,1.89998457,144.98,144.95,8.35899602]
[1768484838679,1.46998457,144.98,144.94,10.89887365]
[1768484839771,1.46998457,144.98,144.94,12.35896824]
[1768484839976,1.46998457,144.98,144.94,8.35943792]
[1768484840273,1.46998457,144.98,144.94,12.35896824]
[1768484840474,0.1,144.99,144.97,3.99953032]
[1768484840774,1.56998457,144.99,144.97,3.96953032]
[1768484841152,1.56998457,144.99,144.96,1.46009459]
[1768484841552,1.56998457,144.99,144.96,5.45962491]
[1768484841776,1.56998457,144.99,144.94,36.72785995]
[1768484841777,0.1,144.99,144.97,5.65260303]
[1768484841957,1.75056464,145.01,144.98,3.99953032]
[1768484842166,0.1,145.01,144.98,12.55003231]
[1768484842373,1.75056464,145.01,144.98,12.55003231]
[1768484843266,1.75056464,145.01,144.98,8.55050199]
[1768484843469,1.75056464,145.01,144.98,12.55003231]
[1768484844050,1.75056464,145.01,144.97,6.89776425]
[1768484844255,1.58000541,145.0,144.97,6.89776425]
[1768484844454,1.58000541,145.0,144.96,12.4436682]
[1768484846178,1.58000541,145.0,144.96,8.44413788]
[1768484846351,1.58000541,145.0,144.97,5.54532444]
[1768484846759,1.58000541,145.0,144.96,8.44413788]
[1768484847054,8.47656399,145.0,144.96,8.44413788]
[1768484847256,8.47656399,145.0,144.96,12.4436682]
[1768484847672,1.58000541,144.99,144.96,10.89787408]
[1768484847863,1.58000541,144.99,144.96,6.89834376]
[1768484848066,1.58000541,144.99,144.96,12.4436682]
[1768484848469,1.58000541,144.99,144.96,1.54579412]
[1768484848666,1.58000541,144.99,144.95,10.89826081]
[1768484848667,1.58000541,144.98,144.94,8.44498447]
[1768484848981,1.58000541,144.98,144.95,6.89889281]
[1768484849285,1.58000541,144.98,144.95,11.00142934]
[1768484849870,1.58000541,144.98,144.95,8.44468693]
[1768484850077,1.58000541,144.98,144.95,11.00142934]
[1768484851781,1.58000541,144.98,144.93,8.44541511]
[1768484851986,1.58000541,144.97,144.93,6.89962099]
[1768484852575,1.58000541,144.96,144.93,6.89962099]
[1768484854791,1.58000541,144.96,144.92,8.4459386]
[1768484857291,11.03485708,144.97,144.93,1.54579412]
[1768484857495,1.58000541,144.96,144.93,1.54579412]
[1768484857666,1.58000541,144.96,144.93,11.0023643]
[1768484857868,1.58000541,144.96,144.93,8.44562189]
[1768484862497,6.89803923,144.97,144.93,8.44562189]
[1768484862498,1.58000541,145.0,144.96,1.54579412]
[1768484862700,1.58000541,144.98,144.95,1.54579412]
[1768484865009,6.89671124,145.0,144.95,8.44449042]
[1768484865184,2.55674241,144.99,144.96,1.54579412]
[1768484865506,11.03345906,145.0,144.96,1.54579412]
[1768484865705,4.13674782,144.99,144.96,1.54579412]
[1768484866400,1.58000541,144.98,144.94,8.44502436]
[1768484866588,1.58000541,144.96,144.93,1.54579412]
[1768484866985,1.58000541,144.96,144.93,8.44541381]
[1768484868597,1.58000541,144.96,144.93,11.00215622]
[1768484871783,1.57650814,144.97,144.93,11.00215622]
[1768484872199,8.47455118,144.97,144.93,8.44541381]
[1768484872404,1.57650814,144.95,144.91,8.4301246]
[1768484872601,1.57650814,144.94,144.91,6.90056966]
[1768484873480,24.14299027,144.97,144.92,8.42988702]
[1768484873481,4.13325055,144.96,144.92,8.42988702]
[1768484873686,1.57650814,144.96,144.92,8.42988702]
[1768484873887,4.13325055,144.96,144.92,8.42988702]
[1768484874685,1.57650814,144.95,144.92,8.42988702]
[1768484875514,4.13325055,144.97,144.93,1.52955494]
[1768484875713,1.57650814,144.97,144.93,4.08629735]
[1768484876816,1.57650814,144.97,144.93,10.98578987]
[1768484878714,1.57650814,144.97,144.94,2.55674241]
[1768484880418,1.57650814,144.97,144.93,10.98578987]
[1768484880829,1.57650814,144.97,144.93,6.89949252]
[1768484880997,1.57650814,144.97,144.93,8.42904746]
[1768484882320,1.57650814,144.96,144.93,1.52955494]
[1768484882732,4.13325055,144.96,144.91,10.98704275]
[1768484882896,1.57650814,144.94,144.91,10.98704275]
[1768484883095,1.45650816,144.94,144.91,10.98704275]
[1768484883330,9.45541984,144.96,144.91,10.98704275]
[1768484884323,6.89867743,144.96,144.92,1.52955494]
[1768484885122,1.57650814,144.95,144.92,1.52955494]
[1768484886906,8.41548421,144.95,144.92,1.52955494]
[1768484887112,8.35548422,144.95,144.92,1.52955494]
[1768484887820,6.89897606,144.95,144.91,10.98707016]
[1768484889021,8.4754842,144.95,144.91,10.98707016]
[1768484889717,8.41548421,144.95,144.91,10.98707016]
[1768484889923,1.57650814,144.94,144.91,10.98707016]
[1768484890119,1.51650815,144.94,144.91,10.98707016]
[1768484892599,1.51650815,144.94,144.91,8.43032775]
[1768484892818,1.51650815,144.94,144.92,2.55674241]
[1768484893838,1.45650816,144.94,144.92,2.55674241]
[1768484894125,1.45650816,144.94,144.91,10.98707016]
[1768484894320,1.39650817,144.94,144.91,10.98707016]
[1768484894523,1.33650818,144.94,144.91,10.98707016]
[1768484901024,2.55674241,144.94,144.89,12.58]
[1768484901231,1.59174003,144.91,144.88,6.90210792]
[1768484902027,1.59174003,144.91,144.88,8.54258446]
[1768484902636,1.59174003,144.91,144.88,11.09932687]
[1768484903468,1.59174003,144.91,144.88,6.90212599]
[1768484903929,1.59174003,144.91,144.88,8.54260253]
[1768484904130,1.59174003,144.91,144.88,11.09934494]
[1768484907137,1.69166725,144.93,144.9,1.61808253]
[1768484907337,1.69166725,144.94,144.91,4.17482494]
[1768484908239,1.69166725,144.95,144.92,1.61808253]
[1768484908453,1.69166725,144.95,144.92,4.17482494]
[1768484909010,1.69166725,144.96,144.93,1.61808253]
[1768484909214,1.69166725,144.96,144.93,4.17482494]
[1768484909438,1.69166725,144.96,144.93,5.61366922]
[1768484910631,8.58978099,144.97,144.94,3.99558669]
[1768484910812,1.69166725,144.97,144.94,5.61366922]
[1768484911437,1.69166725,145.0,144.96,5.61366922]
[1768484912316,1.69166725,145.0,144.96,12.51189164]
[1768484912542,1.69166725,145.0,144.97,5.61366922]
[1768484913719,0.1,145.01,144.98,1.61808253]
[1768484913920,0.1,145.01,145.0,1.61808253]
[1768484914119,0.1,145.01,144.97,6.89784579]
[1768484914120,0.1,145.01,144.98,1.61808253]
[1768484914416,1.69166725,145.08,145.02,1.61808253]
[1768484914618,6.99231336,145.09,145.05,3.99558669]
[1768484914937,3.99558669,145.08,145.04,1.61808253]
[1768484915128,6.99231336,145.09,145.04,1.61808253]
[1768484915448,10.98790005,145.09,145.04,5.61366922]
[1768484915623,10.98790005,145.09,145.04,12.50830843]
[1768484915819,3.99558669,145.08,145.02,1.61808253]
[1768484916032,6.99231336,145.09,145.02,12.5092383]
[1768484916233,6.99231336,145.09,145.03,8.51320527]
[1768484916452,10.98790005,145.09,145.04,5.61366922]
[1768484916621,5.68725394,145.08,145.04,1.61808253]
[1768484916964,1.69166725,145.07,145.03,1.61808253]
[1768484917744,1.69166725,145.06,145.02,5.61366922]
[1768484917951,1.69166725,145.06,145.02,1.61808253]
[1768484918149,1.69166725,145.06,145.02,5.61366922]
[1768484919042,1.69166725,145.06,145.02,12.50900754]
[1768484919944,5.68725394,145.05,145.01,1.61808253]
[1768484920150,1.69166725,145.04,145.01,1.61808253]
[1768484920364,1.69166725,145.04,145.0,18.19366922]
[1768484920647,1.69166725,145.04,145.0,1.61808253]
[1768484921016,1.69166725,145.04,145.0,12.51019299]
[1768484921645,1.69166725,145.04,145.01,3.99558669]
[1768484922141,10.88935771,145.06,145.01,3.99558669]
[1768484922353,10.88935771,145.06,145.02,1.61808253]
[1768484922354,1.69166725,145.05,145.02,1.61808253]
[1768484923052,1.69166725,145.06,145.02,5.61366922]
[1768484923247,1.69166725,145.06,145.02,12.50912541]
[1768484923854,1.69166725,145.06,145.03,1.61808253]
[1768484924051,1.69166725,145.06,145.03,5.61366922]
[1768484924238,1.69166725,145.07,145.03,5.61366922]
[1768484924434,1.69166725,145.08,145.04,5.61366922]
[1768484925661,10.98795386,145.09,145.05,5.61366922]
[1768484925662,8.68403442,145.09,145.05,5.61366922]
[1768484925846,1.69166725,145.08,145.05,1.61808253]
[1768484926046,5.68725394,145.08,145.04,1.61808253]
[1768484926541,1.69166725,145.08,145.04,1.61808253]
[1768484926749,1.69166725,145.08,145.04,5.61366922]
[1768484927255,1.69166725,145.08,145.04,12.50827076]
[1768484928032,8.68403442,145.09,145.05,5.61366922]
[1768484928240,1.69166725,145.08,145.04,8.51268407]
[1768484928471,1.69166725,145.08,145.04,12.50827076]
[1768484928659,29.90912602,145.11,145.04,12.50827076]
[1768484928660,0.1,145.12,145.1,0.76557479]
[1768484928834,0.1,145.12,145.09,3.99558669]
[1768484929029,1.79166725,145.12,145.08,0.76557479]
[1768484929234,1.79166725,145.12,145.1,3.99558669]
[1768484929867,1.79166725,145.12,145.08,7.65806835]
[1768484930067,12.68,145.16,145.13,0.67696257]
[1768484930068,0.1,145.16,145.13,0.67696257]
[1768484930277,1.69166725,145.18,145.11,4.13774826]
[1768484930481,1.69166725,145.18,145.11,0.14216157]
[1768484930642,1.69166725,145.18,145.11,4.13774826]
[1768484930841,1.67543494,145.2,145.11,0.14216157]
[1768484931148,1.67543494,145.2,145.11,12.72216157]
[1768484931348,1.67543494,145.2,145.16,3.99558669]
[1768484931669,1.67543494,145.2,145.16,6.888764]
[1768484931849,1.67543494,145.2,145.18,3.99558669]
[1768484932050,1.67543494,145.2,145.14,6.889817]
[1768484932252,1.67543494,145.18,145.12,0.26611379]
[1768484932467,1.67543494,145.18,145.15,3.99558669]
[1768484932970,1.67543494,145.18,145.13,0.2769873]
[1768484933162,1.67543494,145.18,145.14,3.99558669]
[1768484933355,1.67543494,145.18,145.13,0.2769873]
[1768484933547,1.67543494,145.18,145.15,3.99558669]
[1768484933750,1.67543494,145.18,145.13,7.16727484]
[1768484933970,1.67543494,145.18,145.15,3.99558669]
[1768484934155,8.56254146,145.2,145.17,3.99558669]
[1768484934353,1.67543494,145.19,145.17,3.99558669]
[1768484934566,1.67543494,145.19,145.16,3.99558669]
[1768484935063,1.67543494,145.19,145.15,6.88931804]
[1768484935273,1.67543494,145.18,145.14,3.99558669]
[1768484935964,1.67543494,145.17,145.13,7.25485477]
[1768484936170,6.88802022,145.18,145.14,4.40375503]
[1768484936171,1.67543494,145.18,145.14,4.40375503]
[1768484936771,1.67543494,145.18,145.14,11.29364551]
[1768484937064,1.67543494,145.18,145.14,4.40375503]
[1768484937365,8.56352953,145.18,145.14,4.44692884]
[1768484937776,1.67543494,145.17,145.13,0.49402007]
[1768484938075,1.67543494,145.18,145.14,3.99558669]
[1768484938502,1.67543494,145.18,145.14,6.88988817]
[1768484938655,5.67102163,145.18,145.14,6.88988817]
[1768484938855,1.67543494,145.18,145.13,7.38433194]
[1768484939066,5.67102163,145.18,145.13,11.37991863]
[1768484939666,12.55902279,145.18,145.13,7.38433194]
[1768484939869,3.99558669,145.17,145.13,0.49402007]
[1768484940370,8.5634361,145.18,145.12,0.57791094]
[1768484940371,5.67102163,145.16,145.12,0.57791094]
[1768484940581,1.67543494,145.15,145.11,0.57791094]
[1768484940753,1.67543494,145.15,145.11,11.4645153]
[1768484941070,1.67543494,145.17,145.12,0.6191351]
[1768484941267,5.67102163,145.17,145.12,7.50986352]
[1768484941479,1.67543494,145.15,145.1,7.51058787]
[1768484941659,1.67543494,145.12,145.08,20.11256625]
[1768484941861,4.98259819,145.12,145.08,20.11256625]
[1768484942064,0.9870115,145.12,145.08,20.11256625]
[1768484942266,6.88942473,145.15,145.09,1.34830919]
[1768484942473,6.88909269,145.16,145.09,5.34389588]
[1768484942674,87.10013532,145.3,145.11,1.38859178]
[1768484942675,19.44862652,145.17,145.11,1.38859178]
[1768484942870,3.99558669,145.15,145.11,1.38859178]
[1768484943070,3.99558669,145.16,145.11,1.38859178]
[1768484943373,19.44862652,145.17,145.09,1.38859178]
[1768484943374,36.66981547,145.17,145.09,1.38859178]
[1768484943571,3.99558669,145.13,145.09,1.38859178]
[1768484943875,5.67102163,145.13,145.08,24.87667888]
[1768484944080,1.67543494,145.12,145.08,24.87667888]
[1768484944368,1.67543494,145.11,145.08,6.89263339]
[1768484944574,1.67543494,145.15,145.1,1.46777422]
[1768484944790,8.56248728,145.2,145.14,1.46777422]
[1768484945291,3.99558669,145.19,145.14,1.46777422]
[1768484945488,8.56248728,145.2,145.14,1.46777422]
[1768484945794,1.67543494,145.2,145.15,8.39610937]
[1768484945966,1.67543494,145.2,145.14,3.99558669]
[1768484945967,8.56271049,145.2,145.14,6.88983021]
[1768484946163,1.67543494,145.2,145.14,8.39651485]
[1768484946691,1.67543494,145.2,145.16,1.54514813]
[1768484946890,1.67543494,145.2,145.15,1.54514813]
[1768484947190,1.67543494,145.21,145.16,5.54073482]
[1768484947577,1.67543494,145.21,145.14,24.11457872]
[1768484947578,1.67543494,145.21,145.17,1.54514813]
[1768484947779,1.67543494,145.21,145.17,12.4289104]
[1768484948172,1.67543494,145.21,145.17,1.54514813]
[1768484948387,1.67543494,145.22,145.17,8.43359985]
[1768484948578,1.67543494,145.22,145.17,12.42918654]
[1768484948775,5.67102163,145.21,145.17,1.54514813]
[1768484948989,1.67543494,145.2,145.16,8.49383312]
[1768484949179,1.67543494,145.2,145.15,1.60495966]
[1768484949369,5.67102163,145.2,145.15,1.60495966]
[1768484949573,1.67543494,145.18,145.13,18.30270792]
[1768484949776,1.67543494,145.18,145.14,6.889517]
[1768484949978,5.67102163,145.18,145.13,25.19294486]
[1768484950381,1.67543494,145.18,145.13,21.19735817]
[1768484950583,5.67102163,145.18,145.13,25.19294486]
[1768484950895,5.67102163,145.18,145.13,21.19735817]
[1768484951074,1.67543494,145.18,145.13,25.19294486]
[1768484951277,5.67102163,145.18,145.13,21.0551966]
[1768484951470,1.67543494,145.18,145.13,25.05078329]
[1768484951783,5.67102163,145.18,145.13,21.0551966]
[1768484951986,3.99558669,145.17,145.13,12.56]
[1768484952173,1.67543494,145.16,145.13,12.56]
[1768484952372,1.67543494,145.16,145.13,19.45031612]
[1768484952771,1.67543494,145.16,145.13,23.44590281]
[1768484952998,1.67543494,145.16,145.12,8.58282791]
[1768484953200,1.67543494,145.15,145.11,10.88684927]
[1768484953371,1.67543494,145.15,145.11,6.89126258]
[1768484953571,5.67102163,145.16,145.12,6.89078266]
[1768484953986,1.67543494,145.16,145.12,6.89078266]
[1768484954185,5.67102163,145.16,145.12,6.89078266]
[1768484954708,1.67543494,145.16,145.12,12.63021229]
[1768484954917,1.67543494,145.18,145.13,3.99558669]
[1768484955212,1.67543494,145.16,145.12,24.11790504]
[1768484955803,1.67543494,145.16,145.12,25.86174798]
[1768484956697,1.67543494,145.16,145.12,29.85733467]
[1768484956866,1.67543494,145.16,145.12,25.86174798]
[1768484957071,1.67543494,145.16,145.12,29.85733467]
[1768484957474,1.67543494,145.2,145.16,1.74384294]
[1768484957674,1.67543494,145.21,145.16,1.74384294]
[1768484957981,5.67102163,145.2,145.16,1.74384294]
[1768484958483,1.67543494,145.2,145.16,1.74384294]
[1768484958683,1.67543494,145.2,145.16,8.63232651]
[1768484959692,1.67543494,145.2,145.16,12.6279132]
[1768484960505,1.67543494,145.22,145.17,1.74384294]
[1768484960676,5.67102163,145.22,145.17,5.73942963]
[1768484960880,1.67543494,145.22,145.18,12.84538281]
[1768484961478,1.67543494,145.22,145.18,8.84979612]
[1768484961685,1.67543494,145.22,145.18,12.84538281]
[1768484961990,2.16713963,145.21,145.18,6.8880011]
[1768484962904,2.16713963,145.21,145.17,5.98267462]
[1768484962905,2.16713963,145.21,145.17,6.88835483]
[1768484963084,6.16272632,145.21,145.17,6.88835483]
[1768484963287,2.16713963,145.21,145.17,6.88835483]
[1768484963493,6.16272632,145.21,145.17,6.88835483]
[1768484963881,2.16713963,145.21,145.17,10.88394152]
[1768484965498,2.16713963,145.21,145.17,6.88835483]
[1768484965695,6.16272632,145.21,145.17,6.88835483]
[1768484966691,6.16272632,145.21,145.17,9.02121486]
[1768484967102,2.28523867,145.22,145.18,2.13286003]
[1768484967802,2.28523867,145.22,145.17,13.04012961]
[1768484967979,2.28523867,145.21,145.17,13.04012961]
[1768484968892,2.28523867,145.22,145.18,6.17483489]
[1768484969908,2.28523867,145.22,145.18,13.06259662]
[1768484970680,2.28523867,145.22,145.18,9.06700993]
[1768484970880,2.28523867,145.22,145.18,13.06259662]
[1768484971280,2.28523867,145.22,145.18,11.61508903]
[1768484971476,2.28523867,145.22,145.18,9.06700993]
[1768484971677,2.28523867,145.22,145.19,2.5480791]
[1768484971902,11.71957086,145.22,145.18,6.88776173]
[1768484972077,2.28523867,145.21,145.17,9.43636315]
[1768484972276,2.28523867,145.21,145.18,6.88792324]
[1768484974197,2.28523867,145.22,145.18,11.71609222]
[1768484974591,2.28523867,145.22,145.18,6.88792324]
[1768484974789,2.28523867,145.21,145.18,6.88792324]
[1768484974992,2.28523867,145.2,145.17,6.8883061]
[1768484975307,2.28523867,145.2,145.16,9.43695946]
[1768484976022,2.28523867,145.19,145.16,6.88888036]
[1768484976190,2.28523867,145.19,145.16,9.43695946]
[1768484976513,2.28523867,145.19,145.16,6.88888036]
[1768484976688,2.28523867,145.19,145.16,9.43695946]
[1768484977188,2.28523867,145.19,145.16,6.88888036]
[1768484978716,2.28523867,145.21,145.16,11.71704934]
[1768484978899,2.28523867,145.21,145.18,6.8880011]
[1768484979102,2.28523867,145.21,145.18,9.4360802]
[1768484979490,2.28523867,145.21,145.18,6.8880011]
[1768484979914,6.88531001,145.24,145.18,6.8880011]
[1768484980219,2.28523867,145.22,145.18,11.71617008]
[1768484980908,2.28523867,145.24,145.2,2.28008988]
[1768484981092,2.28523867,145.23,145.19,2.28008988]
[1768484981295,2.28523867,145.23,145.18,22.04817173]
[1768484981594,2.28523867,145.22,145.18,19.50009263]
[1768484981911,2.28523867,145.22,145.19,6.88742183]
[1768484982894,2.28523867,145.23,145.19,9.16741486]
[1768484983219,4.83331777,145.23,145.19,9.16741486]
[1768484983903,2.28523867,145.22,145.18,9.16790275]
[1768484984105,2.28523867,145.22,145.18,11.71598185]
[1768484984306,2.28523867,145.22,145.19,6.88750618]
[1768484984510,2.28523867,145.23,145.19,11.71567516]
[1768484985309,6.88563368,145.23,145.16,2.28008988]
[1768484985589,2.5480791,145.21,145.16,2.28008988]
[1768484985790,2.57231373,145.21,145.16,2.28008988]
[1768484986108,2.5480791,145.2,145.16,2.28008988]
[1768484987721,2.5480791,145.2,145.16,9.16899011]
[1768484988018,2.5480791,145.2,145.16,2.28008988]
[1768484989094,21.99508349,145.21,145.17,2.28008988]
[1768484989498,22.07486706,145.21,145.17,2.28008988]
[1768484989708,2.5480791,145.21,145.18,2.28008988]
[1768484990498,2.5480791,145.21,145.17,9.1684737]
[1768484991000,6.98417828,145.22,145.17,2.28008988]
[1768484991209,2.5480791,145.2,145.17,2.28008988]
[1768484991517,0.09249222,145.21,145.17,2.28008988]
[1768484991728,2.5480791,145.2,145.17,2.28008988]
[1768484992317,2.63792563,145.18,145.14,2.54730353]
[1768484992517,2.5480791,145.15,145.1,2.54730353]
[1768484992727,12.56,145.16,145.1,2.54730353]
[1768484992905,12.56,145.16,145.11,2.54730353]
[1768484993212,12.56,145.17,145.12,2.54730353]
[1768484993595,2.5480791,145.16,145.12,2.54730353]
[1768484993892,2.5480791,145.16,145.12,9.43804734]
[1768484994297,12.56,145.17,145.13,2.54730353]
[1768484994497,2.5480791,145.17,145.13,2.54730353]
[1768484994719,15.1080791,145.18,145.14,2.54730353]
[1768484995598,2.5480791,145.18,145.14,2.54730353]
[1768484995806,2.5480791,145.18,145.15,2.54730353]
[1768484996530,2.5480791,145.19,145.15,2.54730353]
[1768484998323,2.5480791,145.18,145.15,2.54730353]
[1768484999637,6.88705234,145.2,145.15,2.54730353]
[1768484999819,2.5480791,145.18,145.14,6.88980811]
[1768485000129,2.5480791,145.18,145.14,9.43711164]
[1768485000530,2.5480791,145.17,145.14,2.54730353]
[1768485000701,24.10468319,145.2,145.14,2.54730353]
[1768485000904,2.5480791,145.17,145.14,2.54730353]
[1768485001534,6.88816879,145.18,145.14,2.54730353]
[1768485001740,2.5480791,145.17,145.14,2.54730353]
[1768485002036,2.5480791,145.17,145.13,9.43747474]
[1768485002219,6.88816879,145.18,145.13,9.43747474]
[1768485002419,9.43577822,145.19,145.15,2.54730353]
[1768485002831,2.5480791,145.18,145.15,2.54730353]
[1768485003209,6.88769912,145.19,145.15,2.54730353]
[1768485003721,2.5480791,145.18,145.15,2.54730353]
[1768485004636,9.43577822,145.19,145.15,2.54730353]
[1768485004822,2.5480791,145.2,145.16,2.54730353]
[1768485005132,2.5480791,145.19,145.16,2.54730353]
[1768485005914,12.56,145.2,145.16,2.54730353]
[1768485005915,2.5480791,145.2,145.17,2.54730353]
[1768485006531,2.5480791,145.19,145.16,2.54730353]
[1768485006942,2.5480791,145.19,145.15,9.4365229]
[1768485007639,19.44742968,145.2,145.15,9.4365229]
[1768485007808,2.5480791,145.19,145.15,9.4365229]
[1768485008533,2.5480791,145.18,145.14,9.4370294]
[1768485008925,2.5480791,145.18,145.15,2.54730353]
[1768485009437,2.5480791,145.19,145.16,2.54730353]
[1768485009620,19.44720054,145.2,145.16,2.54730353]
[1768485009827,21.99527964,145.2,145.16,2.54730353]
[1768485010332,2.5480791,145.2,145.16,2.54730353]
[1768485010639,19.44676478,145.21,145.16,2.54730353]
[1768485010825,2.5480791,145.2,145.16,2.54730353]
[1768485011224,6.88610094,145.23,145.17,2.54730353]
[1768485011429,6.88610094,145.23,145.19,2.54730353]
[1768485011638,9.43418004,145.23,145.19,2.54730353]
[1768485011822,2.5480791,145.22,145.19,2.54730353]
[1768485012312,6.88610094,145.23,145.19,2.54730353]
[1768485012518,2.5480791,145.22,145.19,2.54730353]
[1768485012933,2.5480791,145.22,145.17,6.8881742]
[1768485013217,19.44610094,145.23,145.17,9.43547773]
[1768485013524,2.5480791,145.21,145.17,9.43547773]
[1768485014136,2.5480791,145.2,145.17,9.43547773]
[1768485015623,6.8862082,145.22,145.17,9.43547773]
[1768485015836,2.5480791,145.2,145.17,9.43547773]
[1768485016014,2.48807911,145.2,145.17,9.43547773]
[1768485016741,2.48807911,145.2,145.17,2.54730353]
[1768485016922,2.5480791,145.18,145.16,2.54730353]
[1768485017120,2.5480791,145.18,145.14,9.43700673]
[1768485017542,2.5480791,145.18,145.15,2.54730353]
[1768485019259,6.88761925,145.19,145.15,2.54730353]
[1768485019560,2.5480791,145.18,145.15,2.54730353]
[1768485020069,2.5480791,145.17,145.13,9.43749866]
[1768485021074,12.56,145.18,145.15,2.33640432]
[1768485021561,15.1080791,145.18,145.15,2.33640432]
[1768485022368,2.5480791,145.18,145.15,2.33640432]
[1768485023036,9.43612309,145.18,145.15,2.33640432]
[1768485023240,9.43612309,145.18,145.11,29.78781707]